fUSD/lending_fUSD_20250617
["ID","MTS","AMOUNT","RATE_DAILY","PERIOD"]
[366230305,1750141843296,-490.0,0.00016554,2]
[366230306,1750141843305,-490.0,0.00016554,2]
[366230307,1750141843316,-490.0,0.00016554,2]
[366230308,1750141843327,-490.0,0.00016554,2]
[366230309,1750141843337,-490.0,0.00016554,2]
[366230310,1750141843347,-490.0,0.00016554,2]
[366230311,1750141843357,-490.0,0.00016554,2]
[366230312,1750141843366,-490.0,0.00016554,2]
[366230313,1750141843376,-1613.69,0.00016554,2]
[366230314,1750141843386,-202.55,0.00016554,2]
[366230315,1750141843395,-490.0,0.00016554,2]
[366230316,1750141843405,-599.16,0.00016554,2]
[366230317,1750141843416,-490.0,0.00016554,2]
[366230318,1750141843426,-240.31609578,0.00016554,2]
[366230319,1750141843437,-249.68390422,0.00016554,2]
[366230320,1750141843446,-1523.31609578,0.00016554,2]
[366230321,1750141843458,-508.91390422,0.00016554,2]
[366230322,1750141843467,-490.0,0.00016554,2]
[366230323,1750141843477,-490.0,0.00016554,2]
[366230324,1750141843487,-1040.12,0.00016554,2]
[366230325,1750141843496,-554.97,0.00016554,2]
[366230326,1750141843505,-490.0,0.00016554,2]
[366230327,1750141843514,-490.0,0.00016554,2]
[366230328,1750141843523,-490.0,0.00016554,2]
[366230329,1750141843533,-306.262325,0.00016555,2]
[366230330,1750141843543,-306.262325,0.00016555,2]
[366230331,1750141843552,-151.0,0.00016555,2]
[366230332,1750141843562,-152.081506,0.00016555,2]
[366230333,1750141843572,-151.0,0.00016555,2]
[366230334,1750141843582,-650.422635,0.00016555,2]
[366230335,1750141843591,-650.422635,0.00016555,2]
[366230336,1750141843601,-490.0,0.00016555,2]
[366230337,1750141843611,-490.0,0.00016555,2]
[366230338,1750141843623,-490.0,0.00016555,2]
[366230339,1750141843634,-490.0,0.00016555,2]
[366230340,1750141843644,-490.0,0.00016555,2]
[366230341,1750141843655,-282.77,0.00016555,2]
[366230342,1750141843665,-490.0,0.00016555,2]
[366230343,1750141843675,-490.0,0.00016555,2]
[366230344,1750141843685,-490.0,0.00016555,2]
[366230345,1750141843694,-456.18173438,0.00016555,2]
[366230346,1750141843704,-490.0,0.00016555,2]
[366230347,1750141843714,-490.0,0.00016555,2]
[366230348,1750141843724,-490.0,0.00016555,2]
[366230349,1750141843733,-490.0,0.00016555,2]
[366230350,1750141843744,-490.0,0.00016555,2]
[366230351,1750141843756,-449.85709524,0.00016555,2]
[366230352,1750141843776,-40.14290476,0.00016555,2]
[366230353,1750141843786,-490.0,0.00016555,2]
[366230354,1750141843796,-403.83209524,0.00016555,2]
[366230355,1750141846199,-490.0,0.00016554,2]
[366230356,1750141846209,-490.0,0.00016554,2]
[366230357,1750141846220,-490.0,0.00016554,2]
[366230358,1750141846230,-86.16790476,0.00016555,2]
[366230359,1750141846239,-527.79,0.00016555,2]
[366230360,1750141846249,-490.0,0.00016555,2]
[366230361,1750141846259,-490.0,0.00016555,2]
[366230362,1750141846268,-490.0,0.00016555,2]
[366230363,1750141846279,-490.0,0.00016555,2]
[366230364,1750141846289,-490.0,0.00016555,2]
[366230365,1750141846299,-490.0,0.00016555,2]
[366230366,1750141846309,-579.64,0.00016555,2]
[366230367,1750141846321,-490.0,0.00016555,2]
[366230368,1750141846331,-490.0,0.00016555,2]
[366230369,1750141846341,-490.0,0.00016555,2]
[366230370,1750141846351,-490.0,0.00016555,2]
[366230371,1750141846362,-490.0,0.00016555,2]
[366230372,1750141846372,-490.0,0.00016555,2]
[366230373,1750141846383,-490.0,0.00016555,2]
[366230374,1750141846393,-490.0,0.00016555,2]
[366230375,1750141846403,-490.0,0.00016555,2]
[366230376,1750141846413,-490.0,0.00016555,2]
[366230377,1750141846423,-490.0,0.00016555,2]
[366230379,1750141846433,-490.0,0.00016555,2]
[366230381,1750141846442,-314.13903774,0.00016555,2]
[366230383,1750141846455,-576.77,0.00016555,2]
[366230385,1750141846465,-490.0,0.00016555,2]
[366230387,1750141846475,-490.0,0.00016555,2]
[366230389,1750141846484,-490.0,0.00016555,2]
[366230391,1750141846494,-490.0,0.00016555,2]
[366230393,1750141846505,-490.0,0.00016555,2]
[366230395,1750141846514,-490.0,0.00016555,2]
[366230397,1750141846525,-490.0,0.00016555,2]
[366230399,1750141846534,-490.0,0.00016555,2]
[366230401,1750141846545,-490.0,0.00016555,2]
[366230403,1750141846554,-490.0,0.00016555,2]
[366230404,1750141846565,-490.0,0.00016555,2]
[366230405,1750141846574,-490.0,0.00016555,2]
[366230406,1750141846584,-627.59,0.00016555,2]
[366230407,1750141846594,-490.0,0.00016555,2]
[366230408,1750141846604,-490.0,0.00016555,2]
[366230409,1750141846613,-97.88316842,0.00016555,2]
[366230410,1750141846626,-392.11683158,0.00016555,2]
[366230411,1750141846636,-490.0,0.00016555,2]
[366230412,1750141846646,-490.0,0.00016555,2]
[366230413,1750141846655,-585.16,0.00016555,2]
[366230414,1750141846665,-490.0,0.00016555,2]
[366230415,1750141846674,-596.74278676,0.00016555,2]
[366230416,1750141846684,-826.91,0.00016555,2]
[366230417,1750141846693,-487.41357509,0.00016555,2]
[366230418,1750141846704,-490.0,0.00016555,2]
[366230419,1750141846713,-495.27,0.00016555,2]
[366230420,1750141846723,-490.0,0.00016555,2]
[366230421,1750141846733,-490.0,0.00016555,2]
[366230422,1750141846743,-490.0,0.00016555,2]
[366230423,1750141846752,-490.0,0.00016555,2]
[366230424,1750141846762,-490.0,0.00016555,2]
[366230425,1750141846771,-502.2067986,0.00016555,2]
[366230426,1750141846781,-490.0,0.00016555,2]
[366230427,1750141846790,-490.0,0.00016555,2]
[366230428,1750141846800,-490.0,0.00016555,2]
[366230429,1750141846810,-532.26,0.00016555,2]
[366230430,1750141846819,-171.66086399,0.00016555,2]
[366230431,1750141846830,-490.0,0.00016555,2]
[366230433,1750141846839,-490.0,0.00016555,2]
[366230435,1750141846849,-490.0,0.00016555,2]
[366230437,1750141846859,-490.0,0.00016555,2]
[366230439,1750141846869,-490.0,0.00016555,2]
[366230440,1750141846878,-490.0,0.00016555,2]
[366230442,1750141846888,-490.0,0.00016555,2]
[366230444,1750141846898,-490.0,0.00016555,2]
[366230446,1750141846908,-490.0,0.00016555,2]
[366230448,1750141846918,-490.0,0.00016555,2]
[366230450,1750141846927,-490.0,0.00016555,2]
[366230452,1750141846936,-490.39945762,0.00016555,2]
[366230454,1750141846945,-490.0,0.00016555,2]
[366230456,1750141846955,-490.0,0.00016555,2]
[366230458,1750141846964,-490.0,0.00016555,2]
[366230460,1750141846975,-489.27824675,0.00016555,2]
[366230461,1750141846984,-461.86501204,0.00016555,2]
[366230463,1750141846994,-151.38460476,0.00016555,2]
[366230465,1750141847004,-380.97434,0.00016555,2]
[366230467,1750141847013,-490.0,0.00016555,2]
[366230469,1750141847024,-351.63,0.00016555,2]
[366230471,1750141847033,-490.0,0.00016555,2]
[366230473,1750141847043,-490.0,0.00016555,2]
[366230475,1750141847053,-490.0,0.00016555,2]
[366230476,1750141847062,-490.0,0.00016555,2]
[366230477,1750141847072,-351.51689646,0.00016555,2]
[366230478,1750141847081,-490.0,0.00016555,2]
[366230479,1750141847091,-490.0,0.00016555,2]
[366230480,1750141847102,-490.0,0.00016555,2]
[366230481,1750141847111,-490.0,0.00016555,2]
[366230482,1750141847121,-613.68,0.00016555,2]
[366230483,1750141847131,-490.0,0.00016555,2]
[366230484,1750141847140,-359.72075433,0.00016555,2]
[366230485,1750141847152,-490.0,0.00016555,2]
[366230486,1750141847161,-436.47469972,0.00016555,2]
[366230487,1750141847171,-490.0,0.00016555,2]
[366230488,1750141847181,-426.34320295,0.00016555,2]
[366230489,1750141847191,-490.0,0.00016555,2]
[366230490,1750141847200,-493.84,0.00016555,2]
[366230491,1750141847210,-490.0,0.00016555,2]
[366230492,1750141847219,-490.0,0.00016555,2]
[366230493,1750141847229,-490.0,0.00016555,2]
[366230494,1750141847238,-490.0,0.00016555,2]
[366230495,1750141847248,-490.0,0.00016555,2]
[366230496,1750141847258,-490.0,0.00016555,2]
[366230497,1750141847268,-490.0,0.00016555,2]
[366230498,1750141847278,-490.0,0.00016555,2]
[366230499,1750141847288,-500.0,0.00016555,2]
[366230500,1750141847297,-490.0,0.00016555,2]
[366230501,1750141847307,-490.0,0.00016555,2]
[366230502,1750141847318,-771.59,0.00016555,2]
[366230503,1750141847330,-490.0,0.00016555,2]
[366230504,1750141847339,-490.0,0.00016555,2]
[366230505,1750141847349,-490.0,0.00016555,2]
[366230506,1750141847358,-490.0,0.00016555,2]
[366230507,1750141847368,-232.13,0.00016555,2]
[366230508,1750141847378,-490.0,0.00016555,2]
[366230509,1750141847389,-490.0,0.00016555,2]
[366230510,1750141847398,-490.0,0.00016555,2]
[366230511,1750141847408,-490.0,0.00016555,2]
[366230512,1750141847418,-490.0,0.00016555,2]
[366230513,1750141847428,-490.0,0.00016555,2]
[366230514,1750141847439,-761.41,0.00016555,2]
[366230515,1750141847666,-490.0,0.00016555,2]
[366230516,1750141847676,-490.0,0.00016555,2]
[366230517,1750141847686,-490.0,0.00016555,2]
[366230518,1750141847696,-490.0,0.00016555,2]
[366230519,1750141847706,-490.0,0.00016555,2]
[366230520,1750141847716,-2171.68,0.00016555,2]
[366230521,1750141847726,-490.0,0.00016555,2]
[366230522,1750141847736,-490.0,0.00016555,2]
[366230523,1750141847746,-490.0,0.00016555,2]
[366230524,1750141847756,-490.0,0.00016555,2]
[366230525,1750141847766,-1363.78,0.00016555,2]
[366230526,1750141847777,-7509.03,0.00016555,2]
[366230527,1750141847788,-698.66,0.00016555,2]
[366230528,1750141847798,-565.46,0.00016555,2]
[366230529,1750141847808,-2950.67,0.00016555,2]
[366230530,1750141847817,-937.25,0.00016555,2]
[366230531,1750141847828,-490.0,0.00016555,2]
[366230532,1750141847838,-490.0,0.00016555,2]
[366230533,1750141847848,-490.0,0.00016555,2]
[366230534,1750141847858,-745.81,0.00016555,2]
[366230535,1750141847868,-1304.7,0.00016555,2]
[366230536,1750141847878,-490.0,0.00016555,2]
[366230537,1750141847888,-490.0,0.00016555,2]
[366230538,1750141847898,-490.0,0.00016555,2]
[366230539,1750141847907,-1877.24,0.00016555,2]
[366230540,1750141847918,-490.0,0.00016555,2]
[366230541,1750141847928,-490.0,0.00016555,2]
[366230542,1750141847939,-237.82,0.00016555,2]
[366230543,1750141847949,-179.71,0.00016555,2]
[366230544,1750141847958,-941.83,0.00016555,2]
[366230545,1750141847968,-490.0,0.00016555,2]
[366230546,1750141847978,-1038.51,0.00016555,2]
[366230547,1750141847988,-2716.33,0.00016555,2]
[366230548,1750141847998,-474.072128,0.00016555,2]
[366230549,1750141848007,-490.0,0.00016555,2]
[366230550,1750141848017,-490.0,0.00016555,2]
[366230551,1750141848027,-211.65,0.00016555,2]
[366230552,1750141848038,-490.0,0.00016555,2]
[366230553,1750141848048,-3026.77,0.00016555,2]
[366230554,1750141848059,-490.0,0.00016555,2]
[366230555,1750141848069,-211.53315998,0.00016555,2]
[366230556,1750141848079,-490.0,0.00016555,2]
[366230557,1750141848090,-2767.38,0.00016555,2]
[366230558,1750141848100,-54.85333722,0.00016555,2]
[366230559,1750141848115,-435.14666278,0.00016555,2]
[366230560,1750141848124,-366.07,0.00016555,2]
[366230561,1750141848135,-1318.8,0.00016555,2]
[366230562,1750141848146,-490.0,0.00016555,2]
[366230563,1750141848156,-1944.31,0.00016555,2]
[366230564,1750141848166,-490.0,0.00016555,2]
[366230565,1750141848176,-490.0,0.00016555,2]
[366230566,1750141848186,-1036.39,0.00016555,2]
[366230567,1750141848196,-490.0,0.00016555,2]
[366230568,1750141848206,-490.0,0.00016555,2]
[366230569,1750141848216,-568.53,0.00016555,2]
[366230570,1750141848226,-490.0,0.00016555,2]
[366230571,1750141848236,-490.0,0.00016555,2]
[366230572,1750141848246,-490.0,0.00016555,2]
[366230573,1750141848256,-490.0,0.00016555,2]
[366230574,1750141848267,-518.22,0.00016555,2]
[366230575,1750141848277,-490.0,0.00016555,2]
[366230576,1750141848287,-490.0,0.00016555,2]
[366230577,1750141848296,-644.69,0.00016555,2]
[366230578,1750141848306,-490.0,0.00016555,2]
[366230579,1750141848318,-5774.77,0.00016555,2]
[366230580,1750141848329,-490.0,0.00016555,2]
[366230581,1750141848339,-2674.2,0.00016555,2]
[366230582,1750141848350,-490.0,0.00016555,2]
[366230583,1750141848360,-490.0,0.00016555,2]
[366230584,1750141848370,-625.62,0.00016555,2]
[366230585,1750141848380,-490.0,0.00016555,2]
[366230586,1750141848390,-490.0,0.00016555,2]
[366230587,1750141848402,-490.0,0.00016555,2]
[366230588,1750141848412,-490.0,0.00016555,2]
[366230589,1750141848422,-495.94371466,0.00016555,2]
[366230590,1750141848431,-490.0,0.00016555,2]
[366230591,1750141848441,-490.0,0.00016555,2]
[366230592,1750141848450,-490.0,0.00016555,2]
[366230593,1750141848459,-877.51,0.00016555,2]
[366230594,1750141848469,-2000.34,0.00016555,2]
[366230595,1750141848479,-529.81,0.00016555,2]
[366230596,1750141848489,-490.0,0.00016555,2]
[366230597,1750141848499,-490.0,0.00016555,2]
[366230598,1750141848509,-490.0,0.00016555,2]
[366230599,1750141848519,-615.82,0.00016555,2]
[366230600,1750141848529,-490.0,0.00016555,2]
[366230601,1750141848539,-490.0,0.00016555,2]
[366230602,1750141848550,-490.0,0.00016555,2]
[366230603,1750141848561,-490.0,0.00016555,2]
[366230604,1750141848571,-490.0,0.00016555,2]
[366230605,1750141848580,-490.0,0.00016555,2]
[366230606,1750141848591,-490.0,0.00016555,2]
[366230607,1750141848601,-647.19,0.00016555,2]
[366230608,1750141848611,-490.0,0.00016555,2]
[366230609,1750141848621,-686.24,0.00016555,2]
[366230610,1750141848631,-490.0,0.00016555,2]
[366230611,1750141848641,-490.0,0.00016555,2]
[366230612,1750141848650,-490.0,0.00016555,2]
[366230613,1750141848660,-297.95825957,0.00016555,2]
[366230614,1750141848670,-6010.16,0.00016555,2]
[366230615,1750141848680,-490.0,0.00016555,2]
[366230616,1750141848689,-2629.5,0.00016555,2]
[366230617,1750141848699,-574.24,0.00016555,2]
[366230618,1750141848709,-213.55279314,0.00016555,2]
[366230619,1750141848719,-725.63,0.00016555,2]
[366230620,1750141848729,-151.0,0.00016555,2]
[366230621,1750141848739,-490.0,0.00016555,2]
[366230622,1750141848748,-2440.93017331,0.00016571,2]
[366230623,1750141848758,-621.17035067,0.00016579,2]
[366230624,1750141848768,-490.0,0.00016587,2]
[366230625,1750141848778,-490.0,0.00016587,2]
[366230626,1750141848788,-490.0,0.00016587,2]
[366230627,1750141848797,-285.19,0.00016587,2]
[366230628,1750141848807,-511.90197986,0.00016587,2]
[366230629,1750141848818,-490.0,0.00016587,2]
[366230630,1750141848828,-490.0,0.00016587,2]
[366230631,1750141848838,-490.0,0.00016587,2]
[366230632,1750141848848,-490.0,0.00016587,2]
[366230633,1750141848858,-566.84,0.00016587,2]
[366230634,1750141848867,-490.0,0.00016587,2]
[366230635,1750141848877,-638.23,0.00016587,2]
[366230636,1750141848887,-490.0,0.00016587,2]
[366230637,1750141848896,-490.0,0.00016587,2]
[366230638,1750141848906,-490.0,0.00016587,2]
[366230639,1750141848916,-490.0,0.00016587,2]
[366230640,1750141848926,-490.0,0.00016587,2]
[366230641,1750141848936,-585.32,0.00016587,2]
[366230642,1750141848946,-490.0,0.00016587,2]
[366230643,1750141848956,-490.0,0.00016587,2]
[366230644,1750141848966,-534.53,0.00016587,2]
[366230645,1750141848976,-490.0,0.00016587,2]
[366230646,1750141848986,-255.72803185,0.00016587,2]
[366230647,1750141848996,-490.0,0.00016587,2]
[366230648,1750141849006,-490.0,0.00016587,2]
[366230649,1750141849016,-490.0,0.00016587,2]
[366230650,1750141849026,-490.0,0.00016587,2]
[366230651,1750141849036,-195.47299684,0.00016587,2]
[366230652,1750141849046,-490.0,0.00016587,2]
[366230653,1750141849056,-627.86,0.00016587,2]
[366230654,1750141849066,-490.0,0.00016587,2]
[366230655,1750141849076,-490.0,0.00016587,2]
[366230656,1750141849086,-490.0,0.00016587,2]
[366230657,1750141849096,-490.0,0.00016587,2]
[366230658,1750141849105,-490.0,0.00016587,2]
[366230659,1750141849115,-490.0,0.00016587,2]
[366230660,1750141849125,-490.0,0.00016587,2]
[366230661,1750141849135,-490.0,0.00016587,2]
[366230662,1750141849145,-490.0,0.00016587,2]
[366230663,1750141849154,-490.0,0.00016587,2]
[366230664,1750141849165,-490.0,0.00016587,2]
[366230665,1750141849175,-490.0,0.00016587,2]
[366230666,1750141849184,-505.89643084,0.00016587,2]
[366230667,1750141849194,-490.0,0.00016587,2]
[366230668,1750141849204,-490.0,0.00016587,2]
[366230669,1750141849220,-490.0,0.00016587,2]
[366230670,1750141849231,-251.38238426,0.00016587,2]
[366230671,1750141849256,-90.43735843,0.00016587,2]
[366230672,1750141849266,-490.0,0.00016587,2]
[366230673,1750141849278,-490.0,0.00016587,2]
[366230674,1750141849288,-490.0,0.00016587,2]
[366230675,1750141849299,-560.81,0.00016587,2]
[366230676,1750141849309,-578.03,0.00016587,2]
[366230677,1750141849321,-490.0,0.00016587,2]
[366230678,1750141849332,-490.0,0.00016587,2]
[366230679,1750141849343,-490.0,0.00016587,2]
[366230680,1750141849353,-582.665259,0.00016587,2]
[366230681,1750141849364,-490.0,0.00016587,2]
[366230682,1750141849375,-490.0,0.00016587,2]
[366230683,1750141849385,-490.0,0.00016587,2]
[366230684,1750141849395,-500.02,0.00016587,2]
[366230685,1750141849406,-490.0,0.00016587,2]
[366230686,1750141849416,-490.0,0.00016587,2]
[366230687,1750141849427,-490.0,0.00016587,2]
[366230688,1750141849437,-490.0,0.00016587,2]
[366230689,1750141849446,-490.0,0.00016587,2]
[366230690,1750141849456,-490.0,0.00016587,2]
[366230691,1750141849467,-490.0,0.00016587,2]
[366230692,1750141849477,-490.0,0.00016587,2]
[366230693,1750141849487,-490.0,0.00016587,2]
[366230694,1750141849498,-490.0,0.00016587,2]
[366230695,1750141849508,-490.0,0.00016587,2]
[366230696,1750141849518,-490.0,0.00016587,2]
[366230697,1750141849528,-490.0,0.00016587,2]
[366230698,1750141849538,-490.0,0.00016587,2]
[366230699,1750141849548,-490.0,0.00016587,2]
[366230700,1750141849558,-607.29,0.00016587,2]
[366230701,1750141849569,-490.0,0.00016587,2]
[366230702,1750141849580,-490.0,0.00016587,2]
[366230703,1750141849590,-490.0,0.00016587,2]
[366230704,1750141849600,-490.0,0.00016587,2]
[366230705,1750141849610,-490.0,0.00016587,2]
[366230706,1750141849621,-490.0,0.00016587,2]
[366230707,1750141849631,-490.0,0.00016587,2]
[366230708,1750141849641,-490.0,0.00016587,2]
[366230709,1750141849651,-525.44,0.00016587,2]
[366230710,1750141849666,-490.0,0.00016587,2]
[366230711,1750141849676,-490.0,0.00016587,2]
[366230712,1750141849686,-490.0,0.00016587,2]
[366230713,1750141849697,-490.0,0.00016587,2]
[366230714,1750141849707,-490.0,0.00016587,2]
[366230715,1750141849718,-321.30738257,0.00016587,2]
[366230716,1750141849736,-168.69261743,0.00016587,2]
[366230717,1750141849747,-490.0,0.00016587,2]
[366230718,1750141849757,-490.0,0.00016587,2]
[366230719,1750141849769,-320.24075595,0.00016587,2]
[366230720,1750141874373,500.0,0.00013164,2]
[366230721,1750141933587,618.56,0.00015429,2]
[366230722,1750142411909,201.0,0.00014858,2]
[366230724,1750142417609,331.23,0.00013699,2]
[366230726,1750142493243,150.0,0.00015493,4]
[366230727,1750142561413,201.0,0.00014858,2]
[366230728,1750142622036,203.0,0.00014858,2]
[366230729,1750142771703,201.0,0.00014542,2]
[366230730,1750142771965,201.0,0.00015241,2]
[366230733,1750142831453,203.0,0.00014542,2]
[366230734,1750142922439,201.0,0.00014542,2]
[366230735,1750142985228,203.0,0.00014542,2]
[366230759,1750143027615,250.0,0.00015,2]
[366230760,1750143032496,-775.26,0.00015501,2]
[366230761,1750143032506,-250.0,0.00015503,2]
[366230762,1750143032516,-200.0,0.00015504,7]
[366230763,1750143032526,-1765.12,0.00015505,2]
[366230764,1750143032536,-150.0,0.00015505,2]
[366230765,1750143032546,-250.0,0.00015511,2]
[366230766,1750143032556,-733.02,0.0001552,2]
[366230767,1750143032567,-118.2194462,0.00015525,2]
[366230768,1750143032579,-673.85990469,0.00015525,2]
[366230769,1750143032591,-207.92064911,0.00015525,2]
[366230770,1750143032601,-666.0,0.00015579,2]
[366230771,1750143032611,-201.0,0.0001594,3]
[366230772,1750143032621,-1200.0,0.00015999,2]
[366230773,1750143032631,-81.2194462,0.00015999,2]
[366230775,1750143032644,-218.7805538,0.00015999,2]
[366230776,1750143032654,-1947.47801027,0.00016,2]
[366230777,1750143032665,-1947.4780102,0.00016,2]
[366230778,1750143032674,-1947.4780102,0.00016,2]
[366230779,1750143032684,-1947.4780102,0.00016003,2]
[366230780,1750143032694,-1947.4780102,0.00016038,2]
[366230781,1750143032704,-1947.4780102,0.00016072,2]
[366230782,1750143032715,-1947.4780102,0.00016107,2]
[366230783,1750143032725,-676.31033548,0.00016141,2]
[366230784,1750143032742,-1271.16767472,0.00016141,2]
[366230785,1750143032751,-1947.4780102,0.00016176,2]
[366230786,1750143032761,-1006.0,0.000162,2]
[366230787,1750143032771,-1947.4780102,0.0001621,2]
[366230788,1750143032781,-1947.4780102,0.00016245,2]
[366230789,1750143032796,-1947.4780102,0.00016279,2]
[366230790,1750143032805,-428.7026092,0.00016314,2]
[366230791,1750143032851,-582.22055301,0.00016314,2]
[366230792,1750143032862,-675.0,0.00016314,2]
[366230793,1750143032873,-261.55484799,0.00016314,2]
[366230794,1750143032883,-1191.89065365,0.00016348,2]
[366230795,1750143032895,-755.58735655,0.00016348,2]
[366230796,1750143032905,-200.0,0.00016369,2]
[366230797,1750143032915,-1381.43962698,0.00016371,2]
[366230798,1750143032924,-200.0,0.00016375,2]
[366230799,1750143032934,-2258.3144366,0.00016378,2]
[366230804,1750143032967,-47.54149967,0.00016378,2]
[366230807,1750143032977,-740.28605982,0.00016379,2]
[366230809,1750143032988,-1565.56987645,0.00016379,2]
[366230811,1750143032999,-103.12012355,0.00016381,2]
[366230842,1750143038299,-782.94501563,0.00016381,2]
[366230843,1750143038311,-495.3744878,0.00016381,2]
[366230844,1750143038322,-1486.00443694,0.00016383,2]
[366230845,1750143038334,-461.47357326,0.00016383,2]
[366230846,1750143038344,-3709.24366628,0.00016393,2]
[366230847,1750143038355,-852.244346,0.000164,2]
[366230848,1750143038365,-2305.85593627,0.00016404,2]
[366230849,1750143038376,-2305.85593627,0.00016413,2]
[366230850,1750143038386,-600.0,0.00016414,4]
[366230851,1750143038396,-166.32654192,0.00016417,2]
[366230852,1750143038408,-1781.15146828,0.00016417,2]
[366230853,1750143038419,-3709.24366628,0.0001642,2]
[366230854,1750143038429,-200.0,0.0001643,2]
[366230855,1750143038439,-3709.24366628,0.00016434,2]
[366230856,1750143038450,-1011.36119916,0.00016436,2]
[366230863,1750143038933,-2697.88246712,0.00016436,2]
[366230865,1750143038943,-2030.296672,0.00016445,2]
[366230867,1750143038954,-207.4,0.00016445,2]
[366230869,1750143038965,-2305.85593627,0.00016446,2]
[366230871,1750143038975,-1947.4780102,0.00016452,2]
[366230874,1750143038986,-1381.43962698,0.00016452,2]
[366230876,1750143038996,-5119.05682117,0.00016453,2]
[366230878,1750143039006,-168.92211185,0.00016453,2]
[366230880,1750143039016,-152.34,0.00016454,2]
[366230882,1750143039026,-3756.7775,0.00016454,2]
[366230884,1750143039035,-487.5066,0.00016454,2]
[366230886,1750143039046,-13544.22550639,0.00016455,2]
[366230888,1750143039059,-36522.82809361,0.00016455,2]
[366230890,1750143039068,-1000.0,0.00016455,2]
[366230892,1750143039078,-221.68843603,0.00016458,2]
[366230976,1750143040638,-1159.75119095,0.00016458,2]
[366230978,1750143040649,-200.0,0.0001646,2]
[366230980,1750143040659,-1407.658,0.0001646,2]
[366230982,1750143040670,-434.81924555,0.00016461,2]
[366230984,1750143040680,-3709.24366628,0.00016463,2]
[366230986,1750143040691,-3709.24366628,0.00016466,2]
[366230988,1750143040701,-1381.43962698,0.00016468,2]
[366230990,1750143040711,-200.0,0.0001647,2]
[366230992,1750143040721,-200.0,0.00016473,2]
[366230994,1750143040731,-200.0,0.00016478,2]
[366230997,1750143040741,-1381.43962698,0.00016479,2]
[366230999,1750143040751,-1381.43962698,0.00016481,2]
[366231001,1750143040762,-2305.85593627,0.00016482,2]
[366231003,1750143040772,-2305.85593627,0.00016484,2]
[366231005,1750143040782,-3709.24366628,0.00016486,2]
[366231007,1750143040792,-1947.4780102,0.00016486,2]
[366231009,1750143040803,-200.0,0.00016487,2]
[366231011,1750143040813,-2000.0,0.00016489,2]
[366231014,1750143040826,-500.0,0.00016489,2]
[366231017,1750143040836,-200.0,0.00016489,2]
[366231019,1750143040847,-1381.43962698,0.00016489,2]
[366231021,1750143040858,-3709.24366628,0.00016494,2]
[366231023,1750143040868,-2305.85593627,0.00016496,2]
[366231025,1750143040878,-5119.05682113,0.00016503,2]
[366231028,1750143040888,-434.81924546,0.0001651,2]
[366231031,1750143040898,-1947.4780102,0.00016521,2]
[366231034,1750143040909,-198.65,0.00016543,2]
[366231038,1750143040920,-151.0,0.00016543,2]
[366231041,1750143040931,-490.0,0.00016552,2]
[366231044,1750143040941,-490.0,0.00016552,2]
[366231046,1750143040951,-209.3,0.00016552,2]
[366231048,1750143040961,-490.0,0.00016552,2]
[366231050,1750143040972,-490.0,0.00016552,2]